fUSD/lending_fUSD_20240521
["ID","MTS","AMOUNT","RATE_DAILY","PERIOD"]
[327674356,1716306724889,-646.38796175,0.00032876,6]
[327674357,1716306724938,-500.0,0.00032876,6]
[327674358,1716306724986,-500.0,0.00032876,6]
[327674359,1716306725032,-535.42,0.00032876,6]
[327674360,1716306725078,-500.0,0.00032876,6]
[327674361,1716306725122,-500.0,0.00032876,6]
[327674362,1716306725166,-500.0,0.00032876,6]
[327674363,1716306725208,-500.0,0.00032876,6]
[327674364,1716306725251,-500.0,0.00032876,6]
[327674365,1716306725296,-500.0,0.00032876,6]
[327674366,1716306725467,-779.87,0.00032876,6]
[327674367,1716306725511,-500.0,0.00032876,6]
[327674368,1716306725555,-953.08,0.00032876,6]
[327674369,1716306725601,-500.0,0.00032876,6]
[327674370,1716306725646,-728.15,0.00032876,6]
[327674371,1716306725695,-500.0,0.00032876,6]
[327674372,1716306725739,-500.0,0.00032876,6]
[327674373,1716306725785,-500.0,0.00032876,6]
[327674374,1716306725832,-2044.66,0.00032876,6]
[327674375,1716306725878,-500.0,0.00032876,6]
[327674376,1716306725921,-500.0,0.00032876,6]
[327674377,1716306725965,-500.0,0.00032876,6]
[327674378,1716306726010,-855.84,0.00032876,6]
[327674379,1716306726054,-500.0,0.00032876,6]
[327674380,1716306726098,-500.0,0.00032876,6]
[327674381,1716306726143,-565.09,0.00032876,6]
[327674382,1716306726188,-518.03527088,0.00032876,6]
[327674383,1716306726246,-500.0,0.00032876,6]
[327674384,1716306726290,-500.0,0.00032876,6]
[327674385,1716306726508,-500.0,0.00032876,6]
[327674386,1716306726555,-1058.05,0.00032876,6]
[327674387,1716306726602,-845.34,0.00032876,6]
[327674388,1716306726648,-500.0,0.00032876,6]
[327674389,1716306726694,-500.0,0.00032876,6]
[327674390,1716306726739,-523.08916,0.00032876,6]
[327674391,1716306726786,-500.0,0.00032876,6]
[327674392,1716306726834,-10292.08,0.00032876,6]
[327674393,1716306726879,-500.0,0.00032876,6]
[327674394,1716306726923,-500.0,0.00032876,6]
[327674395,1716306726969,-500.0,0.00032876,6]
[327674396,1716306727013,-560.54,0.00032876,6]
[327674397,1716306727060,-500.0,0.00032876,6]
[327674398,1716306727105,-500.0,0.00032876,6]
[327674399,1716306727151,-500.0,0.00032876,6]
[327674400,1716306727196,-552.84,0.00032876,6]
[327674401,1716306727242,-1215.24,0.00032876,6]
[327674402,1716306727285,-321.31585654,0.00032876,6]
[327674403,1716306727334,-665.67,0.00032876,6]
[327674404,1716306727379,-1140.69,0.00032876,6]
[327674405,1716306727575,-504.22011288,0.00032876,6]
[327674406,1716306727622,-500.0,0.00032876,6]
[327674407,1716306727667,-500.0,0.00032876,6]
[327674408,1716306727711,-1288.23,0.00032876,6]
[327674409,1716306727756,-500.0,0.00032876,6]
[327674410,1716306727801,-500.0,0.00032876,6]
[327674411,1716306727845,-500.0,0.00032876,6]
[327674412,1716306727897,-500.0,0.00032876,6]
[327674413,1716306727943,-500.0,0.00032876,6]
[327674414,1716306727990,-1047.91,0.00032876,6]
[327674415,1716306728036,-44883.72,0.00032876,6]
[327674416,1716306728083,-734.44,0.00032876,6]
[327674417,1716306728128,-500.0,0.00032876,6]
[327674418,1716306728178,-706.72,0.00032876,6]
[327674419,1716306728223,-1186.3,0.00032876,6]
[327674420,1716306728268,-6657.57,0.00032876,6]
[327674421,1716306728312,-500.0,0.00032876,6]
[327674422,1716306728356,-500.0,0.00032876,6]
[327674423,1716306728401,-500.0,0.00032876,6]
[327674424,1716306728585,-500.0,0.00032876,6]
[327674425,1716306728632,-500.0,0.00032876,6]
[327674426,1716306728680,-500.0,0.00032876,6]
[327674427,1716306728725,-500.0,0.00032876,6]
[327674428,1716306728772,-500.0,0.00032876,6]
[327674429,1716306728818,-500.0,0.00032876,6]
[327674430,1716306728865,-500.0,0.00032876,6]
[327674431,1716306728912,-500.0,0.00032876,6]
[327674432,1716306728957,-500.0,0.00032876,6]
[327674433,1716306729002,-500.0,0.00032876,6]
[327674434,1716306729047,-500.0,0.00032876,6]
[327674435,1716306729094,-937.71,0.00032876,6]
[327674436,1716306729139,-1331.56,0.00032876,6]
[327674437,1716306729185,-613.79,0.00032876,6]
[327674438,1716306729230,-1212.24,0.00032876,6]
[327674439,1716306729275,-500.0,0.00032876,6]
[327674440,1716306729321,-500.0,0.00032876,6]
[327674441,1716306729366,-500.0,0.00032876,6]
[327674442,1716306729410,-1689.3,0.00032876,6]
[327674443,1716306729639,-524.59848561,0.00032876,6]
[327674444,1716306729688,-500.0,0.00032876,6]
[327674445,1716306729736,-500.0,0.00032876,6]
[327674446,1716306729784,-500.0,0.00032876,6]
[327674447,1716306729832,-1834.39,0.00032876,6]
[327674448,1716306729879,-500.0,0.00032876,6]
[327674449,1716306729928,-1474.7,0.00032876,6]
[327674450,1716306729974,-2214.73,0.00032876,6]
[327674451,1716306730021,-500.0,0.00032876,6]
[327674452,1716306730067,-1732.89,0.00032876,6]
[327674453,1716306730112,-500.0,0.00032876,6]
[327674454,1716306730157,-500.0,0.00032876,6]
[327674455,1716306730202,-500.0,0.00032876,6]
[327674456,1716306730248,-739.89,0.00032876,6]
[327674457,1716306730295,-385.88765216,0.00032876,6]
[327674458,1716306730342,-500.0,0.00032876,6]
[327674459,1716306730386,-500.0,0.00032876,6]
[327674460,1716306730431,-500.0,0.00032876,6]
[327674461,1716306730475,-500.0,0.00032876,6]
[327674462,1716306730519,-931.15,0.00032876,6]
[327674463,1716306730718,-925.36,0.00032876,6]
[327674464,1716306730766,-500.0,0.00032876,6]
[327674465,1716306730811,-1782.21,0.00032876,6]
[327674466,1716306730856,-500.0,0.00032876,6]
[327674467,1716306730903,-500.0,0.00032876,6]
[327674468,1716306730949,-1204.89,0.00032876,6]
[327674469,1716306730993,-500.0,0.00032876,6]
[327674470,1716306731038,-500.0,0.00032876,6]
[327674471,1716306731084,-7640.7,0.00032876,6]
[327674472,1716306731132,-500.0,0.00032876,6]
[327674473,1716306731177,-1006.04,0.00032876,6]
[327674474,1716306731223,-597.2,0.00032876,6]
[327674475,1716306731270,-500.0,0.00032876,6]
[327674476,1716306731315,-500.0,0.00032876,6]
[327674477,1716306731362,-733.42,0.00032876,6]
[327674478,1716306731408,-500.0,0.00032876,6]
[327674479,1716306731455,-500.0,0.00032876,6]
[327674480,1716306731502,-516.60987429,0.00032876,6]
[327674481,1716306731548,-828.95,0.00032876,6]
[327674482,1716306731790,-3985.75,0.00032876,6]
[327674483,1716306731842,-3210.96,0.00032876,6]
[327674484,1716306731889,-507.16505572,0.00032876,6]
[327674485,1716306731935,-500.0,0.00032876,6]
[327674486,1716306731981,-1677.99,0.00032876,6]
[327674487,1716306732027,-500.0,0.00032876,6]
[327674488,1716306732075,-500.0,0.00032876,6]
[327674489,1716306732120,-500.0,0.00032876,6]
[327674490,1716306732165,-789.36,0.00032876,6]
[327674491,1716306732222,-500.0,0.00032876,6]
[327674492,1716306732271,-500.0,0.00032876,6]
[327674493,1716306732325,-500.0,0.00032876,6]
[327674494,1716306732374,-1658.05,0.00032876,6]
[327674495,1716306732426,-500.0,0.00032876,6]
[327674496,1716306732474,-660.83,0.00032876,6]
[327674497,1716306732523,-575.9,0.00032876,6]
[327674498,1716306732573,-500.0,0.00032876,6]
[327674499,1716306732621,-500.0,0.00032876,6]
[327674500,1716306732670,-500.0,0.00032876,6]
[327674501,1716306732898,-2996.03,0.00032876,6]
[327674502,1716306732943,-500.0,0.00032876,6]
[327674503,1716306732991,-564.14,0.00032876,6]
[327674504,1716306733036,-500.0,0.00032876,6]
[327674505,1716306733084,-500.0,0.00032876,6]
[327674506,1716306733128,-500.0,0.00032876,6]
[327674507,1716306733172,-500.0,0.00032876,6]
[327674508,1716306733216,-500.0,0.00032876,6]
[327674509,1716306733261,-500.0,0.00032876,6]
[327674510,1716306733312,-500.0,0.00032876,6]
[327674511,1716306733356,-1512.85,0.00032876,6]
[327674512,1716306733400,-500.0,0.00032876,6]
[327674513,1716306733443,-3035.44,0.00032876,6]
[327674514,1716306733485,-500.0,0.00032876,6]
[327674515,1716306733529,-500.0,0.00032876,6]
[327674516,1716306733573,-533.33,0.00032876,6]
[327674517,1716306733617,-1142.73,0.00032876,6]
[327674518,1716306733665,-500.0,0.00032876,6]
[327674519,1716306733711,-3133.85,0.00032876,6]
[327674520,1716306733894,-508.99492557,0.00032876,6]
[327674521,1716306733940,-500.0,0.00032876,6]
[327674522,1716306733985,-500.0,0.00032876,6]
[327674523,1716306734030,-514.86683465,0.00032876,6]
[327674524,1716306734075,-1831.21,0.00032876,6]
[327674525,1716306734119,-2584.94,0.00032876,6]
[327674526,1716306734165,-1106.46,0.00032876,6]
[327674527,1716306734210,-1974.95,0.00032876,6]
[327674528,1716306734254,-500.0,0.00032876,6]
[327674529,1716306734299,-2082.0,0.00032876,6]
[327674530,1716306734346,-500.0,0.00032876,6]
[327674531,1716306734390,-500.0,0.00032876,6]
[327674532,1716306734434,-500.0,0.00032876,6]
[327674533,1716306734479,-500.0,0.00032876,6]
[327674534,1716306734523,-500.0,0.00032876,6]
[327674535,1716306734565,-826.9,0.00032876,6]
[327674536,1716306734611,-500.0,0.00032876,6]
[327674537,1716306734661,-1518.16,0.00032876,6]
[327674538,1716306734706,-500.0,0.00032876,6]
[327674539,1716306734752,-554.39,0.00032876,6]
[327674540,1716306734933,-711.34,0.00032876,6]
[327674541,1716306734980,-500.0,0.00032876,6]
[327674542,1716306735025,-500.0,0.00032876,6]
[327674543,1716306735075,-2608.15,0.00032876,6]
[327674544,1716306735121,-500.0,0.00032876,6]
[327674545,1716306735166,-855.66,0.00032876,6]
[327674546,1716306735211,-500.0,0.00032876,6]
[327674547,1716306735257,-3514.82,0.00032876,6]
[327674548,1716306735305,-631.1,0.00032876,6]
[327674549,1716306735351,-500.0,0.00032876,6]
[327674550,1716306735398,-500.0,0.00032876,6]
[327674551,1716306735443,-1570.91,0.00032876,6]
[327674552,1716306735487,-500.0,0.00032876,6]
[327674553,1716306735533,-756.67,0.00032876,6]
[327674554,1716306735579,-500.0,0.00032876,6]
[327674555,1716306735627,-1406.32,0.00032876,6]
[327674556,1716306735673,-3267.59,0.00032876,6]
[327674557,1716306735719,-500.0,0.00032876,6]
[327674558,1716306735764,-500.0,0.00032876,6]
[327674559,1716306735937,-500.0,0.00032876,6]
[327674560,1716306735984,-500.0,0.00032876,6]
[327674561,1716306736029,-500.0,0.00032876,6]
[327674562,1716306736073,-500.0,0.00032876,6]
[327674563,1716306736117,-510.63145624,0.00032876,6]
[327674564,1716306736161,-3209.73,0.00032876,6]
[327674565,1716306736205,-668.46,0.00032876,6]
[327674566,1716306736249,-500.0,0.00032876,6]
[327674567,1716306736296,-508.32109951,0.00032876,6]
[327674568,1716306736341,-840.59,0.00032876,6]
[327674569,1716306736386,-500.0,0.00032876,6]
[327674570,1716306736429,-6791.5,0.00032876,6]
[327674571,1716306736479,-2229.03,0.00032876,6]
[327674572,1716306736526,-500.0,0.00032876,6]
[327674573,1716306736573,-5660.22,0.00032876,6]
[327674574,1716306736618,-500.0,0.00032876,6]
[327674575,1716306736662,-1083.51,0.00032876,6]
[327674576,1716306736705,-500.75488478,0.00032876,6]
[327674577,1716306736751,-504.4499338,0.00032876,6]
[327674578,1716306736949,-500.0,0.00032876,6]
[327674579,1716306736994,-500.0,0.00032876,6]
[327674580,1716306737040,-500.0,0.00032876,6]
[327674581,1716306737088,-500.0,0.00032876,6]
[327674582,1716306737130,-500.0,0.00032876,6]
[327674583,1716306737172,-500.0,0.00032876,6]
[327674584,1716306737214,-500.0,0.00032876,6]
[327674585,1716306737259,-500.0,0.00032876,6]
[327674586,1716306737307,-500.0,0.00032876,6]
[327674587,1716306737351,-500.0,0.00032876,6]
[327674588,1716306737395,-500.0,0.00032876,6]
[327674589,1716306737441,-555.83892554,0.00032876,6]
[327674590,1716306737488,-570.97,0.00032876,6]
[327674591,1716306737535,-500.0,0.00032876,6]
[327674592,1716306737580,-5429.66,0.00032876,6]
[327674593,1716306737625,-500.0,0.00032876,6]
[327674594,1716306737670,-6739.18,0.00032876,6]
[327674595,1716306737712,-5376.08,0.00032876,6]
[327674596,1716306737758,-500.0,0.00032876,6]
[327674597,1716306737933,-530.91972961,0.00032876,6]
[327674598,1716306737980,-500.0,0.00032876,6]
[327674599,1716306738025,-500.0,0.00032876,6]
[327674600,1716306738070,-999.48,0.00032876,6]
[327674601,1716306738114,-548.83,0.00032876,6]
[327674602,1716306738159,-500.0,0.00032876,6]
[327674603,1716306738202,-504.77992568,0.00032876,6]
[327674604,1716306738246,-525.45819808,0.00032876,6]
[327674605,1716306738291,-62072.38,0.00032876,6]
[327674606,1716306738337,-500.0,0.00032876,6]
[327674607,1716306738382,-500.0,0.00032876,6]
[327674608,1716306738427,-744.38,0.00032876,6]
[327674609,1716306738471,-500.0,0.00032876,6]
[327674610,1716306738515,-500.0,0.00032876,6]
[327674611,1716306738563,-500.0,0.00032876,6]
[327674612,1716306738609,-701.2,0.00032876,6]
[327674613,1716306738656,-624.17,0.00032876,6]
[327674614,1716306738702,-528.99360387,0.00032876,6]
[327674615,1716306738749,-3510.49,0.00032876,6]
[327674616,1716306738796,-3304.92,0.00032876,6]
[327674617,1716306738983,-500.0,0.00032876,6]
[327674618,1716306739031,-2216.97,0.00032876,6]
[327674619,1716306739080,-500.0,0.00032876,6]
[327674620,1716306739126,-500.0,0.00032876,6]
[327674621,1716306739171,-513.06583827,0.00032876,6]
[327674622,1716306739216,-500.0,0.00032876,6]
[327674623,1716306739261,-2053.69,0.00032876,6]
[327674624,1716306739309,-500.0,0.00032876,6]
[327674625,1716306739356,-500.0,0.00032876,6]
[327674626,1716306739402,-1268.36,0.00032876,6]
[327674627,1716306739448,-500.0,0.00032876,6]
[327674628,1716306739492,-500.0,0.00032876,6]
[327674629,1716306739537,-1400.47,0.00032876,6]
[327674630,1716306739582,-24292.17,0.00032876,6]
[327674631,1716306739631,-500.0,0.00032876,6]
[327674632,1716306739676,-500.0,0.00032876,6]
[327674633,1716306739722,-995.0,0.00032876,6]
[327674634,1716306739768,-500.0,0.00032876,6]
[327674635,1716306739813,-500.0,0.00032876,6]
[327674636,1716306739992,-573.98,0.00032876,6]
[327674637,1716306740039,-1525.71,0.00032876,6]
[327674638,1716306740084,-643.98,0.00032876,6]
[327674639,1716306740130,-1500.7,0.00032876,6]
[327674640,1716306740175,-515.73910858,0.00032876,6]
[327674641,1716306740219,-500.0,0.00032876,6]
[327674642,1716306740264,-500.0,0.00032876,6]
[327674643,1716306740312,-500.0,0.00032876,6]
[327674644,1716306740357,-506.11995613,0.00032876,6]
[327674645,1716306740402,-4849.11,0.00032876,6]
[327674646,1716306740445,-1927.95,0.00032876,6]
[327674647,1716306740490,-3708.22,0.00032876,6]
[327674648,1716306740535,-1375.2,0.00032876,6]
[327674649,1716306740579,-500.0,0.00032876,6]
[327674650,1716306740626,-1061.93,0.00032876,6]
[327674651,1716306740677,-2247.81,0.00032876,6]
[327674652,1716306740725,-500.0,0.00032876,6]
[327674653,1716306740772,-518.72597827,0.00032876,6]
[327674654,1716306740816,-1242.52,0.00032876,6]
[327674655,1716306740996,-500.0,0.00032876,6]
[327674656,1716306741042,-500.0,0.00032876,6]
[327674657,1716306741090,-1210.26,0.00032876,6]
[327674658,1716306741135,-933.91,0.00032876,6]
[327674659,1716306741180,-500.0,0.00032876,6]
[327674660,1716306741225,-500.0,0.00032876,6]
[327674661,1716306741271,-572.3,0.00032876,6]
[327674662,1716306741314,-500.0,0.00032876,6]
[327674663,1716306741358,-501.5707417,0.00032876,6]
[327674664,1716306741402,-695.55,0.00032876,6]
[327674665,1716306741446,-520.25916032,0.00032876,6]
[327674666,1716306741490,-645.52,0.00032876,6]
[327674667,1716306741535,-1531.65,0.00032876,6]
[327674668,1716306741580,-500.0,0.00032876,6]
[327674669,1716306741628,-2209.4,0.00032876,6]
[327674670,1716306741676,-788.64,0.00032876,6]
[327674671,1716306741720,-660.57,0.00032876,6]
[327674672,1716306741770,-500.0,0.00032876,6]
[327674673,1716306741817,-501.35270242,0.00032876,6]
[327674674,1716306742035,-500.0,0.00032876,6]
[327674675,1716306742079,-695.74,0.00032876,6]
[327674676,1716306742122,-518.89831717,0.00032876,6]
[327674677,1716306742167,-500.0,0.00032876,6]
[327674678,1716306742213,-1476.06,0.00032876,6]
[327674679,1716306742258,-500.0,0.00032876,6]
[327674680,1716306742302,-828.97,0.00032876,6]
[327674681,1716306742350,-500.0,0.00032876,6]
[327674682,1716306742395,-2142.44,0.00032876,6]
[327674683,1716306742439,-498.86028,0.00032876,6]
[327674684,1716306742482,-500.0,0.00032876,6]
[327674685,1716306742525,-156.65002411,0.00032876,6]
[327674686,1716306742570,-500.0,0.00032876,6]
[327674687,1716306742615,-505.22995777,0.00032876,6]
[327674688,1716306742664,-3051.79,0.00032876,6]
[327674689,1716306742710,-639.92,0.00032876,6]
[327674690,1716306742758,-160.9,0.00032876,6]
[327674691,1716306742803,-500.0,0.00032876,6]
[327674692,1716306742852,-500.0,0.00032876,6]
[327674693,1716306743055,-603.14,0.00032876,6]
[327674694,1716306743108,-500.0,0.00032876,6]
[327674695,1716306743156,-578.39,0.00032876,6]
[327674696,1716306743200,-1414.09,0.00032876,6]
[327674697,1716306743245,-500.0,0.00032876,6]
[327674698,1716306743291,-500.0,0.00032876,6]
[327674699,1716306743335,-500.0,0.00032876,6]
[327674700,1716306743381,-500.0,0.00032876,6]
[327674701,1716306743429,-605.54,0.00032876,6]
[327674702,1716306743475,-500.0,0.00032876,6]
[327674703,1716306743521,-500.0,0.00032879,7]
[327674704,1716306743570,-336.49211903,0.00032879,7]
[327674705,1716306743616,-312.05206874,0.00032879,7]
[327674706,1716306743667,-500.0,0.00032879,7]
[327674707,1716306743713,-500.0,0.00032879,7]
[327674708,1716306743759,-163.20645522,0.00032879,7]
[327674709,1716306743805,-500.0,0.00032879,7]
[327674710,1716306743856,-244.62156237,0.00032879,7]
[327674711,1716306743902,-2900.0,0.000329,12]
[327674712,1716306743947,-2800.0,0.000329,12]
[327674713,1716306744135,-13643.84505237,0.00033015,5]
[327674714,1716306744185,-500.0,0.00033149,6]
[327674715,1716306744233,-500.0,0.00033149,6]
[327674716,1716306744278,-594.24358151,0.0003315,6]
[327674717,1716306744324,-500.0,0.0003315,6]
[327674718,1716306744370,-752.31,0.0003315,6]
[327674719,1716306744416,-500.0,0.0003315,6]
[327674720,1716306744465,-534.76,0.0003315,6]
[327674721,1716306744512,-500.0,0.0003315,6]
[327674722,1716306744558,-654.11,0.0003315,6]
[327674723,1716306744606,-500.0,0.0003315,6]
[327674724,1716306744654,-500.0,0.0003315,6]
[327674725,1716306744700,-500.0,0.0003315,6]
[327674726,1716306744753,-500.0,0.0003315,6]
[327674727,1716306744801,-500.0,0.0003315,6]
[327674728,1716306744850,-500.0,0.0003315,6]
[327674729,1716306744898,-500.0,0.0003315,6]
[327674730,1716306744945,-500.0,0.0003315,6]
[327674731,1716306744991,-500.0,0.0003315,6]
[327674732,1716306745175,-581.96,0.0003315,6]
[327674733,1716306745222,-826.41,0.0003315,6]
[327674734,1716306745271,-500.0,0.0003315,6]
[327674735,1716306745320,-500.0,0.0003315,6]
[327674736,1716306745367,-500.0,0.0003315,6]
[327674737,1716306745411,-500.0,0.0003315,6]
[327674738,1716306745456,-500.0,0.0003315,6]
[327674739,1716306745501,-523.33947,0.0003315,6]
[327674740,1716306745547,-500.0,0.0003315,6]
[327674741,1716306745596,-500.0,0.0003315,6]
[327674742,1716306745641,-500.0,0.0003315,6]
[327674743,1716306745688,-500.0,0.0003315,6]
[327674744,1716306745734,-500.0,0.0003315,6]
[327674745,1716306745779,-588.6842907,0.0003315,6]
[327674746,1716306745830,-500.0,0.0003315,6]
[327674747,1716306745876,-532.54,0.0003315,6]
[327674748,1716306745921,-500.0,0.0003315,6]
[327674749,1716306745966,-500.0,0.0003315,6]
[327674750,1716306746010,-725.57,0.0003315,6]
[327674751,1716306746191,-500.0,0.0003315,6]
[327674752,1716306746236,-500.0,0.0003315,6]
[327674753,1716306746280,-500.0,0.0003315,6]
[327674754,1716306746326,-500.0,0.0003315,6]
[327674755,1716306746369,-500.0,0.0003315,6]
[327674756,1716306746413,-500.0,0.0003315,6]
[327674757,1716306746457,-583.64,0.0003315,6]
[327674758,1716306746501,-602.33,0.0003315,6]
[327674759,1716306746545,-500.0,0.0003315,6]
[327674760,1716306746592,-511.21905625,0.0003315,6]
[327674761,1716306746638,-513.33223582,0.0003315,6]
[327674762,1716306746682,-500.0,0.0003315,6]
[327674763,1716306746727,-500.0,0.0003315,6]
[327674764,1716306746771,-500.0,0.0003315,6]
[327674765,1716306746820,-602.22,0.0003315,6]
[327674766,1716306746867,-500.0,0.0003315,6]
[327674767,1716306746912,-500.0,0.0003315,6]
[327674768,1716306746957,-633.52,0.0003315,6]
[327674769,1716306747000,-527.8151264,0.0003315,6]
[327674770,1716306747175,-500.0,0.0003315,6]
[327674771,1716306747223,-592.67563207,0.0003315,6]
[327674772,1716306747270,-500.0,0.0003315,6]
[327674773,1716306747320,-500.0,0.0003315,6]
[327674774,1716306747364,-831.53,0.0003315,6]
[327674775,1716306747409,-500.0,0.0003315,6]
[327674776,1716306747454,-500.0,0.0003315,6]
[327674777,1716306747499,-500.0,0.0003315,6]
[327674778,1716306747545,-520.41137776,0.0003315,6]
[327674779,1716306747598,-500.0,0.0003315,6]
[327674780,1716306747647,-500.0,0.0003315,6]
[327674781,1716306747692,-500.0,0.0003315,6]
[327674782,1716306747738,-873.67,0.0003315,6]
[327674783,1716306747785,-500.0,0.0003315,6]
[327674784,1716306747836,-500.0,0.0003315,6]
[327674785,1716306747882,-652.7,0.0003315,6]
[327674786,1716306747930,-500.0,0.0003315,6]
[327674787,1716306747977,-500.0,0.0003315,6]
[327674788,1716306748022,-500.0,0.0003315,6]
[327674789,1716306748221,-1021.23,0.0003315,6]
[327674790,1716306748268,-500.0,0.0003315,6]
[327674791,1716306748319,-500.0,0.0003315,6]
[327674792,1716306748367,-500.0,0.0003315,6]
[327674793,1716306748412,-500.0,0.0003315,6]
[327674794,1716306748456,-500.0,0.0003315,6]
[327674795,1716306748500,-500.0,0.0003315,6]
[327674796,1716306748543,-302.59265435,0.0003315,6]
[327674797,1716306748588,-525.80498764,0.0003315,6]
[327674798,1716306748636,-500.0,0.0003315,6]
[327674799,1716306748687,-1209.4,0.0003315,6]
[327674800,1716306748732,-518.11949662,0.0003315,6]
[327674801,1716306748777,-516.82439485,0.0003315,6]
[327674802,1716306748821,-500.0,0.0003315,6]
[327674803,1716306748866,-523.86228101,0.0003315,6]
[327674804,1716306748910,-502.84361058,0.0003315,6]
[327674805,1716306748956,-1258.95,0.0003315,6]
[327674806,1716306749001,-500.0,0.0003315,6]
[327674807,1716306749045,-500.0,0.0003315,6]
[327674808,1716306749088,-500.0,0.0003315,6]
[327674809,1716306749266,-500.0,0.0003315,6]
[327674810,1716306749317,-500.0,0.0003315,6]
[327674811,1716306749364,-394.03,0.0003315,6]
[327674812,1716306749410,-506.6533178,0.0003315,6]
[327674813,1716306749455,-500.0,0.0003315,6]
[327674814,1716306749505,-500.0,0.0003315,6]
[327674815,1716306749553,-500.0,0.0003315,6]
[327674816,1716306749607,-559.94,0.0003315,6]
[327674817,1716306749655,-513.40065121,0.0003315,6]
[327674818,1716306749702,-554.07926759,0.0003315,6]
[327674819,1716306749748,-500.0,0.0003315,6]
[327674820,1716306749796,-500.0,0.0003315,6]
[327674821,1716306749846,-505.94102497,0.0003315,6]
[327674822,1716306749892,-500.0,0.0003315,6]
[327674823,1716306749938,-500.0,0.0003315,6]
[327674824,1716306749985,-500.0,0.0003315,6]
[327674825,1716306750033,-803.87,0.0003315,6]
[327674826,1716306750083,-500.0,0.0003315,6]
[327674827,1716306750134,-500.0,0.0003315,6]
[327674828,1716306750353,-500.0,0.0003315,6]
[327674829,1716306750409,-500.0,0.0003315,6]
[327674830,1716306750459,-506.90384753,0.0003315,6]
[327674831,1716306750509,-500.0,0.0003315,6]
[327674832,1716306750559,-500.0,0.0003315,6]
[327674833,1716306750619,-775.06,0.0003315,6]
[327674834,1716306750670,-500.0,0.0003315,6]
[327674835,1716306750717,-500.0,0.0003315,6]
[327674836,1716306750764,-498.00886206,0.0003315,6]
[327674837,1716306750812,-500.0,0.0003315,6]
[327674838,1716306750865,-500.0,0.0003315,6]
[327674839,1716306750908,-500.0,0.0003315,6]
[327674840,1716306750953,-559.48,0.0003315,6]
[327674841,1716306750996,-500.0,0.0003315,6]
[327674842,1716306751038,-591.63,0.0003315,6]
[327674843,1716306751081,-500.0,0.0003315,6]
[327674844,1716306751127,-500.0,0.0003315,6]
[327674845,1716306751173,-500.0,0.0003315,6]
[327674846,1716306751219,-536.09,0.0003315,6]
[327674847,1716306751399,-500.0,0.0003315,6]
[327674848,1716306751446,-517.86,0.0003315,6]
[327674849,1716306751493,-500.0,0.0003315,6]
[327674850,1716306751540,-500.0,0.0003315,6]
[327674851,1716306751586,-500.0,0.0003315,6]
[327674852,1716306751633,-500.0,0.0003315,6]
[327674853,1716306751678,-500.0,0.0003315,6]
[327674854,1716306751721,-500.0,0.0003315,6]
[327674855,1716306751766,-500.0,0.0003315,6]